[Event "Dutch Open-ch 2019"]
[Site "Dieren"]
[Date "2019.07.26"]
[Round "4.20"]
[White "Vogel, Jaap"]
[Black "Goswami, Vedant"]
[Result "1-0"]
[ECO "A45"]
[WhiteElo "2126"]
[BlackElo "2046"]
[Annotator "NA"]
[PlyCount "113"]
[EventDate "2019.07.23"]
[EventType "swiss"]
[EventCountry "NED"]
[SourceTitle "playchess.com"]
[Source "ChessBase"]
[SourceQuality "1"]
[TimeControl "40/5400+30:1800+30"]

1. d4 {[%emt 0:00:00]} Nf6 {[%emt 0:00:00]} 2. Bf4 {[%emt 0:00:00]} Nh5 {[%emt 0:00:57]} 3. Be3 {[%emt 0:00:00]} d5 {[%emt 0:00:41]} 4. Nf3 {[%emt 0:00:30]} e6 {[%emt 0:03:03]} 5. c4 {[%emt 0:03:18]} Be7 {[%emt 0:02:18]} 6. Nc3 {[%emt 0:01:27]} c6 {[%emt 0:00:25]} 7. Qd3 {[%emt 0:07:35]} b6 {[%emt 0:02:37]} 8. cxd5 {[%emt 0:08:44]} exd5 {[%emt 0:01:19]} 9. g3 {[%emt 0:00:56]} Ba6 {[%emt 0:03:11]} 10. Qd2 {[%emt 0:01:08]} Nd7 {[%emt 0:00:46]} 11. Bh3 {[%emt 0:02:48]} Bc8 {[%emt 0:03:36]} 12. Rc1 {[%emt 0:05:06]} Ndf6 {[%emt 0:01:14]} 13. Bg2 {[%emt 0:01:05]} Ng4 {[%emt 0:01:20]} 14. Ne5 {[%emt 0:08:03]} Nxe3 {[%emt 0:06:35]} 15. Qxe3 {[%emt 0:00:08]} Bb7 {[%emt 0:00:14]} 16. Bh3 {[%emt 0:11:15]} Nf6 {[%emt 0:00:52]} 17. O-O {[%emt 0:02:51]} O-O {[%emt 0:01:14]} 18. Qd3 {[%emt 0:05:11]} c5 {[%emt 0:13:34]} 19. Rfd1 {[%emt 0:06:56]} Bd6 {[%emt 0:04:47]} 20. f4 {[%emt 0:08:06]} a6 {[%emt 0:06:50]} 21. e3 {[%emt 0:05:46]} c4 {[%emt 0:00:27]} 22. Qf1 {[%emt 0:00:59]} b5 {[%emt 0:00:10]} 23. a3 {[%emt 0:00:15]} Re8 {[%emt 0:03:23]} 24. g4 {[%emt 0:01:16]} Nd7 {[%emt 0:03:05]} 25. Qf3 {[%emt 0:04:15]} Nf6 {[%emt 0:12:39]} 26. g5 {[%emt 0:02:54]} Ne4 {[%emt 0:00:08]} 27. Nxe4 {[%emt 0:00:50]} dxe4 {[%emt 0:00:02]} 28. Qh5 {[%emt 0:02:36]} Qe7 {[%emt 0:02:21]} 29. Kh1 {[%emt 0:01:00]} Rad8 {[%emt 0:03:59]} 30. Rg1 {[%emt 0:01:17]} Bxe5 {[%emt 0:02:05]} 31. fxe5 {[%emt 0:00:04]} Bd5 {[%emt 0:01:59]} 32. Rg4 {[%emt 0:01:18]} g6 {[%emt 0:01:00]} 33. Qh6 {[%emt 0:00:38]} Qf8 {[%emt 0:01:08]} 34. Qxf8+ {[%emt 0:03:01]} Kxf8 {[%emt 0:00:36]} 35. Bg2 {[%emt 0:00:09]} a5 {[%emt 0:01:48]} 36. Bxe4 {[%emt 0:00:10]} Be6 {[%emt 0:00:13]} 37. Rf4 {[%emt 0:02:05]} b4 {[%emt 0:00:24]} 38. axb4 {[%emt 0:00:03]} axb4 {[%emt 0:00:02]} 39. Kg1 {[%emt 0:02:45]} Re7 {[%emt 0:00:05]} 40. Rf2 {[%emt 0:00:43]} Ra7 {[%emt 0:00:38]} 41. Kf1 {[%emt 0:05:27]} Ra2 {[%emt 0:00:57]} 42. Ke1 {[%emt 0:01:03]} Rd7 {[%emt 0:01:14]} 43. Rd2 {[%emt 0:02:34]} Ra5 {[%emt 0:03:32]} 44. Bf3 {[%emt 0:01:30]} Rc7 {[%emt 0:02:54]} 45. d5 {[%emt 0:03:05]} Bd7 {[%emt 0:02:19]} 46. e4 {[%emt 0:04:20]} c3 {[%emt 0:04:11]} 47. bxc3 {[%emt 0:00:07]} Ra3 {[%emt 0:00:39]} 48. Bd1 {[%emt 0:02:48]} Raxc3 {[%emt 0:06:07]} 49. Rxc3 {[%emt 0:00:17]} Rxc3 {[%emt 0:00:39]} 50. Rd4 {[%emt 0:04:48]} Rc1 {[%emt 0:06:08]} 51. Kd2 {[%emt 0:01:00]} Rb1 {[%emt 0:25:05]} 52. Bc2 {[%emt 0:02:42]} Rh1 {[%emt 0:00:00]} 53. Rxb4 {[%emt 0:00:23]} Rxh2+ {[%emt 0:00:00]} 54. Kc3 {[%emt 0:00:10]} Rg2 {[%emt 0:00:00]} 55. Rb8+ {[%emt 0:00:44]} Ke7 {[%emt 0:00:00]} 56. Bb3 {[%emt 0:00:55]} Bh3 {[%emt 0:00:00]} 57. d6+ {[%emt 0:01:32]} 1-0

[Event "Dutch Open-ch 2019"]
[Site "Dieren"]
[Date "2019.07.27"]
[Round "5.1"]
[White "Beerdsen, Thomas"]
[Black "Van Foreest, Lucas"]
[Result "1/2-1/2"]
[ECO "C44"]
[WhiteElo "2497"]
[BlackElo "2521"]
[Annotator "ChessBase"]
[PlyCount "25"]
[EventDate "2019.07.23"]
[EventType "swiss"]
[EventCountry "NED"]
[SourceTitle "playchess.com"]
[Source "ChessBase"]
[SourceQuality "1"]
[TimeControl "40/5400+30:1800+30"]

1. e4 {[%emt 0:05:54]} e5 {[%emt 0:00:00]} 2. Nf3 {[%emt 0:00:04]} Nc6 {[%emt 0:00:00]} 3. d4 {[%emt 0:00:04]} exd4 {[%emt 0:00:00]} 4. c3 {[%emt 0:00:03]} dxc3 {[%emt 0:04:46]} 5. Nxc3 {[%emt 0:00:32]} d6 {[%emt 0:06:14]} 6. Bc4 {[%emt 0:02:37]} Nf6 {[%emt 0:01:13]} 7. Ng5 {[%emt 0:11:56]} Ne5 {[%emt 0:06:34]} 8. Bb3 {[%emt 0:00:06]} h6 {[%emt 0:07:51]} 9. f4 {[%emt 0:00:05]} Bg4 {[%emt 0:12:03]} 10. Qd4 {[%emt 0:06:33]} hxg5 {[%emt 0:01:24]} 11. fxe5 {[%emt 0:03:27]} dxe5 {[%emt 0:00:06]} 12. Qxe5+ {[%emt 0:00:13]} Qe7 {[%emt 0:00:30]} 13. Qb5+ {[%emt 0:06:02]} 1/2-1/2

[Event "Dutch Open-ch 2019"]
[Site "Dieren"]
[Date "2019.07.27"]
[Round "5.2"]
[White "Schoppen, Casper"]
[Black "Reinderman, Dimitri"]
[Result "1/2-1/2"]
[ECO "E90"]
[WhiteElo "2493"]
[BlackElo "2583"]
[Annotator "ChessBase"]
[PlyCount "95"]
[EventDate "2019.07.23"]
[EventType "swiss"]
[EventCountry "NED"]
[SourceTitle "playchess.com"]
[Source "ChessBase"]
[SourceQuality "1"]
[TimeControl "40/5400+30:1800+30"]

1. d4 {[%emt 0:00:00]} Nf6 {[%emt 0:00:00]} 2. c4 {[%emt 0:00:00]} c5 {[%emt 0:00:00]} 3. d5 {[%emt 0:00:00]} g6 {[%emt 0:00:00]} 4. Nc3 {[%emt 0:00:01]} Bg7 {[%emt 0:00:02]} 5. e4 {[%emt 0:00:53]} d6 {[%emt 0:00:05]} 6. Bd3 {[%emt 0:00:42]} O-O {[%emt 0:00:06]} 7. h3 {[%emt 0:01:33]} e6 {[%emt 0:00:06]} 8. Nf3 {[%emt 0:00:14]} Na6 {[%emt 0:00:16]} 9. O-O {[%emt 0:00:50]} Nc7 {[%emt 0:00:20]} 10. dxe6 {[%emt 0:07:38]} Nxe6 {[%emt 0:01:02]} 11. Be3 {[%emt 0:00:12]} Nd7 {[%emt 0:04:00]} 12. Ne1 {[%emt 0:18:33]} Nd4 {[%emt 0:05:05]} 13. Nc2 {[%emt 0:01:02]} Re8 {[%emt 0:10:37]} 14. Rb1 {[%emt 0:03:56]} b6 {[%emt 0:07:00]} 15. Re1 {[%emt 0:06:47]} Bb7 {[%emt 0:00:59]} 16. Nd5 {[%emt 0:01:51]} Rc8 {[%emt 0:07:35]} 17. b3 {[%emt 0:05:44]} a6 {[%emt 0:04:28]} 18. a4 {[%emt 0:18:22]} Nxc2 {[%emt 0:12:54]} 19. Qxc2 {[%emt 0:01:36]} Ne5 {[%emt 0:00:25]} 20. Bf4 {[%emt 0:09:51]} Rb8 {[%emt 0:10:59]} 21. Bf1 {[%emt 0:01:28]} Bxd5 {[%emt 0:01:31]} 22. exd5 {[%emt 0:00:47]} Qc7 {[%emt 0:05:00]} 23. Re3 {[%emt 0:01:50]} Nd7 {[%emt 0:02:10]} 24. Rbe1 {[%emt 0:01:48]} Rxe3 {[%emt 0:02:28]} 25. Bxe3 {[%emt 0:00:22]} Re8 {[%emt 0:00:36]} 26. Bd2 {[%emt 0:01:24]} Qd8 {[%emt 0:03:13]} 27. Rxe8+ {[%emt 0:00:55]} Qxe8 {[%emt 0:00:04]} 28. Qd3 {[%emt 0:00:31]} a5 {[%emt 0:01:09]} 29. g3 {[%emt 0:00:33]} h5 {[%emt 0:01:42]} 30. Qf3 {[%emt 0:03:31]} Qe7 {[%emt 0:02:46]} 31. Kg2 {[%emt 0:00:57]} Qf6 {[%emt 0:04:47]} 32. Qxf6 {[%emt 0:02:49]} Bxf6 {[%emt 0:00:12]} 33. f4 {[%emt 0:01:47]} Bd4 {[%emt 0:01:36]} 34. g4 {[%emt 0:00:38]} hxg4 {[%emt 0:04:44]} 35. hxg4 {[%emt 0:00:08]} f6 {[%emt 0:00:30]} 36. Kf3 {[%emt 0:01:49]} Kf7 {[%emt 0:00:14]} 37. Bh3 {[%emt 0:00:15]} Nf8 {[%emt 0:01:21]} 38. Ke4 {[%emt 0:00:26]} Bb2 {[%emt 0:00:23]} 39. Be1 {[%emt 0:00:40]} Ke7 {[%emt 0:01:07]} 40. Bh4 {[%emt 0:00:17]} Nh7 {[%emt 0:00:58]} 41. Bg3 {[%emt 0:31:35]} Bc1 {[%emt 0:30:40]} 42. Bf1 {[%emt 0:00:32]} Bb2 {[%emt 0:00:25]} 43. Bd3 {[%emt 0:00:42]} Nf8 {[%emt 0:00:31]} 44. Kf3 {[%emt 0:00:19]} Bc3 {[%emt 0:00:51]} 45. Be4 {[%emt 0:01:10]} Bb2 {[%emt 0:00:18]} 46. Bd3 {[%emt 0:00:09]} Bc3 {[%emt 0:00:08]} 47. Be4 {[%emt 0:00:15]} Bb2 {[%emt 0:00:05]} 48. Bd3 {[%emt 0:00:37]} 1/2-1/2

[Event "Dutch Open-ch 2019"]
[Site "Dieren"]
[Date "2019.07.27"]
[Round "5.3"]
[White "David, Alberto"]
[Black "Lahaye, Rick"]
[Result "1-0"]
[ECO "B51"]
[WhiteElo "2553"]
[BlackElo "2421"]
[Annotator "ChessBase"]
[PlyCount "99"]
[EventDate "2019.07.23"]
[EventType "swiss"]
[EventCountry "NED"]
[SourceTitle "playchess.com"]
[Source "ChessBase"]
[SourceQuality "1"]
[TimeControl "40/5400+30:1800+30"]

1. e4 {[%emt 0:00:00]} c5 {[%emt 0:00:00]} 2. Nf3 {[%emt 0:00:00]} d6 {[%emt 0:00:00]} 3. Bb5+ {[%emt 0:00:00]} Nd7 {[%emt 0:00:00]} 4. c3 {[%emt 0:00:11]} Ngf6 {[%emt 0:00:14]} 5. Bd3 {[%emt 0:00:12]} b6 {[%emt 0:00:15]} 6. O-O {[%emt 0:00:40]} Bb7 {[%emt 0:00:03]} 7. Re1 {[%emt 0:00:07]} Rc8 {[%emt 0:00:07]} 8. Bc2 {[%emt 0:02:53]} Qc7 {[%emt 0:00:05]} 9. Na3 {[%emt 0:00:46]} e6 {[%emt 0:07:01]} 10. Nb5 {[%emt 0:00:42]} Qb8 {[%emt 0:00:26]} 11. d4 {[%emt 0:00:11]} a6 {[%emt 0:01:10]} 12. Na3 {[%emt 0:00:05]} h6 {[%emt 0:07:06]} 13. d5 {[%emt 0:04:41]} e5 {[%emt 0:00:37]} 14. Nc4 {[%emt 0:01:10]} g6 {[%emt 0:00:07]} 15. Nh4 {[%emt 0:18:44]} Bg7 {[%emt 0:16:41]} 16. Qf3 {[%emt 0:07:50]} Qc7 {[%emt 0:03:11]} 17. Qh3 {[%emt 0:02:24]} b5 {[%emt 0:18:44]} 18. Ne3 {[%emt 0:00:22]} c4 {[%emt 0:01:02]} 19. Bd2 {[%emt 0:02:37]} Nc5 {[%emt 0:07:47]} 20. Qf3 {[%emt 0:00:30]} a5 {[%emt 0:03:31]} 21. b3 {[%emt 0:03:21]} Ba6 {[%emt 0:00:17]} 22. b4 {[%emt 0:00:24]} Ncd7 {[%emt 0:04:29]} 23. a4 {[%emt 0:01:41]} axb4 {[%emt 0:07:10]} 24. cxb4 {[%emt 0:01:23]} c3 {[%emt 0:00:15]} 25. Bc1 {[%emt 0:00:19]} Nb6 {[%emt 0:00:23]} 26. Bd3 {[%emt 0:03:33]} Nxa4 {[%emt 0:09:51]} 27. Rxa4 {[%emt 0:02:37]} bxa4 {[%emt 0:00:01]} 28. Bxa6 {[%emt 0:00:07]} Rb8 {[%emt 0:00:02]} 29. Ba3 {[%emt 0:02:41]} O-O {[%emt 0:01:34]} 30. Rc1 {[%emt 0:07:23]} Qa7 {[%emt 0:01:00]} 31. Bd3 {[%emt 0:00:18]} Rfc8 {[%emt 0:04:22]} 32. Qe2 {[%emt 0:08:54]} h5 {[%emt 0:02:21]} 33. Nc4 {[%emt 0:01:38]} Bh6 {[%emt 0:01:09]} 34. Rc2 {[%emt 0:03:18]} Ng4 {[%emt 0:00:46]} 35. h3 {[%emt 0:01:31]} Rxc4 {[%emt 0:02:05]} 36. hxg4 {[%emt 0:02:02]} Rcc8 {[%emt 0:00:15]} 37. gxh5 {[%emt 0:00:26]} Bg5 {[%emt 0:01:07]} 38. Nf3 {[%emt 0:01:18]} Bd8 {[%emt 0:00:24]} 39. Ba6 {[%emt 0:07:04]} Rc7 {[%emt 0:00:55]} 40. hxg6 {[%emt 0:01:13]} fxg6 {[%emt 0:01:35]} 41. b5 {[%emt 0:30:19]} Rc5 {[%emt 0:30:40]} 42. Bxc5 {[%emt 0:10:04]} Qxc5 {[%emt 0:00:16]} 43. Qe3 {[%emt 0:00:10]} Qb4 {[%emt 0:00:00]} 44. Qxc3 {[%emt 0:00:00]} Qxe4 {[%emt 0:00:00]} 45. Qc4 {[%emt 0:00:00]} Qf5 {[%emt 0:00:00]} 46. Bc8 {[%emt 0:00:00]} Qf6 {[%emt 0:00:00]} 47. Qxa4 {[%emt 0:00:00]} Bb6 {[%emt 0:00:00]} 48. Qg4 {[%emt 0:00:00]} Kg7 {[%emt 0:00:00]} 49. Qd7+ {[%emt 0:00:00]} Kh6 {[%emt 0:00:00]} 50. Nh2 {[%emt 0:00:00]} 1-0

[Event "Dutch Open-ch 2019"]
[Site "Dieren"]
[Date "2019.07.27"]
[Round "5.5"]
[White "Maris, Ivo"]
[Black "Ikonnikov, Vyacheslav"]
[Result "1/2-1/2"]
[ECO "A07"]
[WhiteElo "2399"]
[BlackElo "2499"]
[Annotator "ChessBase"]
[PlyCount "62"]
[EventDate "2019.07.23"]
[EventType "swiss"]
[EventCountry "NED"]
[SourceTitle "playchess.com"]
[Source "ChessBase"]
[SourceQuality "1"]
[TimeControl "40/5400+30:1800+30"]

1. g3 {[%emt 0:03:09]} d5 {[%emt 0:02:04]} 2. Bg2 {[%emt 0:00:17]} c6 {[%emt 0:00:30]} 3. Nf3 {[%emt 0:02:03]} Nf6 {[%emt 0:02:08]} 4. O-O {[%emt 0:00:13]} g6 {[%emt 0:01:29]} 5. d3 {[%emt 0:06:10]} Bg7 {[%emt 0:00:46]} 6. Nbd2 {[%emt 0:00:49]} O-O {[%emt 0:03:57]} 7. Re1 {[%emt 0:02:07]} Nbd7 {[%emt 0:04:16]} 8. a4 {[%emt 0:07:17]} Nc5 {[%emt 0:07:24]} 9. a5 {[%emt 0:04:10]} Bg4 {[%emt 0:03:31]} 10. Ne5 {[%emt 0:13:04]} Be6 {[%emt 0:02:13]} 11. a6 {[%emt 0:00:43]} Nxa6 {[%emt 0:01:55]} 12. Nxc6 {[%emt 0:00:40]} Qc7 {[%emt 0:02:22]} 13. Nd4 {[%emt 0:00:46]} Bd7 {[%emt 0:00:16]} 14. c3 {[%emt 0:06:17]} Nc5 {[%emt 0:11:01]} 15. b4 {[%emt 0:11:10]} Ne6 {[%emt 0:00:32]} 16. Nxe6 {[%emt 0:00:33]} Bxe6 {[%emt 0:00:08]} 17. Bb2 {[%emt 0:00:14]} a6 {[%emt 0:01:50]} 18. e4 {[%emt 0:04:10]} dxe4 {[%emt 0:01:53]} 19. Nxe4 {[%emt 0:00:47]} Rad8 {[%emt 0:08:27]} 20. Qe2 {[%emt 0:02:57]} Bd5 {[%emt 0:07:11]} 21. Nc5 {[%emt 0:06:29]} Bxg2 {[%emt 0:14:41]} 22. Kxg2 {[%emt 0:00:14]} Nd7 {[%emt 0:06:33]} 23. Qxe7 {[%emt 0:04:20]} Qc6+ {[%emt 0:00:12]} 24. Qe4 {[%emt 0:00:22]} Nxc5 {[%emt 0:00:06]} 25. Qxc6 {[%emt 0:01:04]} bxc6 {[%emt 0:00:06]} 26. bxc5 {[%emt 0:00:03]} Rxd3 {[%emt 0:00:05]} 27. Rxa6 {[%emt 0:00:33]} Rc8 {[%emt 0:00:20]} 28. Rea1 {[%emt 0:07:25]} Bf8 {[%emt 0:01:05]} 29. Ra8 {[%emt 0:01:37]} Rdd8 {[%emt 0:00:08]} 30. Rxc8 {[%emt 0:00:42]} Rxc8 {[%emt 0:00:06]} 31. c4 {[%emt 0:01:55]} Bxc5 {[%emt 0:00:33]} 1/2-1/2

[Event "Dutch Open-ch 2019"]
[Site "Dieren"]
[Date "2019.07.27"]
[Round "5.6"]
[White "Vrolijk, Liam"]
[Black "Odendahl, Reiner"]
[Result "0-1"]
[ECO "E90"]
[WhiteElo "2478"]
[BlackElo "2352"]
[Annotator "ChessBase"]
[PlyCount "68"]
[EventDate "2019.07.23"]
[EventType "swiss"]
[EventCountry "NED"]
[SourceTitle "playchess.com"]
[Source "ChessBase"]
[SourceQuality "1"]
[TimeControl "40/5400+30:1800+30"]

1. c4 {[%emt 0:00:18]} g6 {[%emt 0:00:00]} 2. d4 {[%emt 0:00:51]} Bg7 {[%emt 0:00:15]} 3. e4 {[%emt 0:00:20]} d6 {[%emt 0:00:30]} 4. Nc3 {[%emt 0:00:14]} Nf6 {[%emt 0:00:29]} 5. h3 {[%emt 0:02:06]} O-O {[%emt 0:00:22]} 6. Be3 {[%emt 0:00:12]} c5 {[%emt 0:04:23]} 7. Nf3 {[%emt 0:00:22]} cxd4 {[%emt 0:01:06]} 8. Nxd4 {[%emt 0:00:08]} b6 {[%emt 0:04:16]} 9. g4 {[%emt 0:03:43]} Bb7 {[%emt 0:01:18]} 10. f3 {[%emt 0:00:32]} Nc6 {[%emt 0:03:43]} 11. Qd2 {[%emt 0:05:06]} Rc8 {[%emt 0:06:27]} 12. O-O-O {[%emt 0:03:44]} Ne5 {[%emt 0:03:12]} 13. b3 {[%emt 0:03:10]} b5 {[%emt 0:13:16]} 14. Ncxb5 {[%emt 0:10:49]} Nxf3 {[%emt 0:02:23]} 15. Nxf3 {[%emt 0:01:03]} Nxe4 {[%emt 0:00:09]} 16. Qb4 {[%emt 0:13:25]} Nc3 {[%emt 0:04:40]} 17. Nxc3 {[%emt 0:07:11]} Bxf3 {[%emt 0:00:23]} 18. Rh2 {[%emt 0:09:31]} a5 {[%emt 0:00:34]} 19. Qb6 {[%emt 0:02:50]} Bxc3 {[%emt 0:01:20]} 20. Be2 {[%emt 0:00:37]} Be4 {[%emt 0:04:23]} 21. Bd3 {[%emt 0:00:55]} Bf3 {[%emt 0:04:59]} 22. Be2 {[%emt 0:02:14]} Bc6 {[%emt 0:01:29]} 23. Kc2 {[%emt 0:01:46]} Be5 {[%emt 0:00:43]} 24. Rf2 {[%emt 0:00:07]} Qd7 {[%emt 0:01:23]} 25. Bf3 {[%emt 0:02:20]} Bxf3 {[%emt 0:03:57]} 26. Rxf3 {[%emt 0:00:09]} Rb8 {[%emt 0:00:10]} 27. Qxa5 {[%emt 0:01:52]} Qc6 {[%emt 0:05:39]} 28. Qd5 {[%emt 0:02:51]} Qa6 {[%emt 0:00:09]} 29. a4 {[%emt 0:00:08]} Rxb3 {[%emt 0:04:29]} 30. Kxb3 {[%emt 0:03:01]} Rb8+ {[%emt 0:00:13]} 31. Kc2 {[%emt 0:04:49]} e6 {[%emt 0:01:01]} 32. Qe4 {[%emt 0:02:55]} Rb2+ {[%emt 0:00:41]} 33. Kd3 {[%emt 0:00:05]} Qxa4 {[%emt 0:00:16]} 34. Rd2 {[%emt 0:03:33]} d5 {[%emt 0:02:01]} 0-1

[Event "Dutch Open-ch 2019"]
[Site "Dieren"]
[Date "2019.07.27"]
[Round "5.7"]
[White "Lai, Hing Ting"]
[Black "Sharma, Dinesh K."]
[Result "1/2-1/2"]
[ECO "A07"]
[WhiteElo "2460"]
[BlackElo "2299"]
[Annotator "ChessBase"]
[PlyCount "53"]
[EventDate "2019.07.23"]
[EventType "swiss"]
[EventCountry "NED"]
[SourceTitle "playchess.com"]
[Source "ChessBase"]
[SourceQuality "1"]
[TimeControl "40/5400+30:1800+30"]

1. Nf3 d5 2. g3 c6 3. Bg2 Bg4 4. O-O Nd7 5. d3 Ngf6 6. Nbd2 e5 7. e4 dxe4 8. dxe4 Bc5 9. h3 Bh5 10. a4 O-O 11. Qe1 Ne8 12. Nc4 f6 13. Nh4 Bf7 14. Ne3 a5 15. Qe2 Nd6 16. Nhf5 Nxf5 17. Nxf5 Nb6 18. h4 Be6 19. h5 Bxf5 20. exf5 h6 21. Bd2 Qe7 22. Rad1 Kh8 23. b3 Rfd8 24. Be4 Bb4 25. c3 Bc5 26. Bc1 Rxd1 27. Rxd1 1/2-1/2

[Event "Dutch Open-ch 2019"]
[Site "Dieren"]
[Date "2019.07.27"]
[Round "5.8"]
[White "Grooten, Herman"]
[Black "Buckels, Valentin"]
[Result "0-1"]
[ECO "E11"]
[WhiteElo "2310"]
[BlackElo "2451"]
[Annotator "ChessBase"]
[PlyCount "84"]
[EventDate "2019.07.23"]
[EventType "swiss"]
[EventCountry "NED"]
[SourceTitle "playchess.com"]
[Source "ChessBase"]
[SourceQuality "1"]
[TimeControl "40/5400+30:1800+30"]

1. d4 {[%emt 0:00:00]} Nf6 {[%emt 0:25:40]} 2. c4 {[%emt 0:00:00]} e6 {[%emt 0:00:03]} 3. Nf3 {[%emt 0:00:00]} Bb4+ {[%emt 0:00:04]} 4. Nbd2 {[%emt 0:00:02]} a5 {[%emt 0:00:05]} 5. a3 {[%emt 0:00:24]} Be7 {[%emt 0:00:05]} 6. e4 {[%emt 0:01:10]} d5 {[%emt 0:00:05]} 7. e5 {[%emt 0:00:30]} Nfd7 {[%emt 0:00:04]} 8. Bd3 {[%emt 0:01:40]} c5 {[%emt 0:00:04]} 9. O-O {[%emt 0:01:48]} Nc6 {[%emt 0:00:45]} 10. Re1 {[%emt 0:01:32]} cxd4 {[%emt 0:01:33]} 11. Nb3 {[%emt 0:05:57]} dxc4 {[%emt 0:13:10]} 12. Bxc4 {[%emt 0:00:16]} Nb6 {[%emt 0:06:38]} 13. Bd3 {[%emt 0:02:21]} Nd5 {[%emt 0:05:27]} 14. Qc2 {[%emt 0:04:22]} Qb6 {[%emt 0:01:43]} 15. Re4 {[%emt 0:13:34]} f5 {[%emt 0:03:19]} 16. exf6 {[%emt 0:02:32]} Nxf6 {[%emt 0:00:11]} 17. Rh4 {[%emt 0:00:42]} e5 {[%emt 0:04:32]} 18. Bg6+ {[%emt 0:07:18]} Kd8 {[%emt 0:00:24]} 19. Ng5 {[%emt 0:11:18]} Rf8 {[%emt 0:09:26]} 20. Bf7 {[%emt 0:07:11]} h6 {[%emt 0:03:09]} 21. Ne6+ {[%emt 0:00:50]} Bxe6 {[%emt 0:00:06]} 22. Bxe6 {[%emt 0:00:04]} Kc7 {[%emt 0:01:45]} 23. Nd2 {[%emt 0:04:27]} Nd7 {[%emt 0:05:28]} 24. Nc4 {[%emt 0:21:15]} Qc5 {[%emt 0:00:21]} 25. Bxd7 {[%emt 0:03:29]} Bxh4 {[%emt 0:00:39]} 26. Bxc6 {[%emt 0:02:34]} bxc6 {[%emt 0:06:42]} 27. Bd2 {[%emt 0:01:52]} Rxf2 {[%emt 0:03:11]} 28. Qa4 {[%emt 0:02:56]} Qd5 {[%emt 0:04:51]} 29. Bxa5+ {[%emt 0:00:19]} Rxa5 {[%emt 0:00:20]} 30. Qxa5+ {[%emt 0:00:28]} Qxa5 {[%emt 0:00:02]} 31. Nxa5 {[%emt 0:00:08]} Rc2 {[%emt 0:01:43]} 32. b3 {[%emt 0:01:56]} e4 {[%emt 0:00:35]} 33. g3 {[%emt 0:00:43]} Bf6 {[%emt 0:01:58]} 34. Nc4 {[%emt 0:00:43]} d3 {[%emt 0:01:02]} 35. Rd1 {[%emt 0:01:03]} Bd4+ {[%emt 0:00:18]} 36. Kh1 {[%emt 0:00:47]} Rxc4 {[%emt 0:00:31]} 37. bxc4 {[%emt 0:00:05]} e3 {[%emt 0:00:03]} 38. Rxd3 {[%emt 0:00:51]} e2 {[%emt 0:00:04]} 39. Rxd4 {[%emt 0:00:08]} e1=Q+ {[%emt 0:00:06]} 40. Kg2 {[%emt 0:00:02]} Qe2+ {[%emt 0:00:24]} 41. Kh3 {[%emt 0:30:09]} Qf1+ {[%emt 0:30:08]} 42. Kg4 {[%emt 0:00:23]} h5+ {[%emt 0:00:04]} 0-1

[Event "Dutch Open-ch 2019"]
[Site "Dieren"]
[Date "2019.07.27"]
[Round "5.10"]
[White "Das, Arghyadip"]
[Black "Ojas Kulkarni"]
[Result "1-0"]
[ECO "C49"]
[WhiteElo "2439"]
[BlackElo "2251"]
[Annotator "NA"]
[PlyCount "63"]
[EventDate "2019.07.23"]
[EventType "swiss"]
[EventCountry "NED"]
[SourceTitle "playchess.com"]
[Source "ChessBase"]
[SourceQuality "1"]
[TimeControl "40/5400+30:1800+30"]

1. e4 {[%emt 0:00:00]} e5 {[%emt 0:00:00]} 2. Nf3 {[%emt 0:00:00]} Nc6 {[%emt 0:00:00]} 3. Nc3 {[%emt 0:00:01]} Nf6 {[%emt 0:01:11]} 4. Bb5 {[%emt 0:00:05]} Bb4 {[%emt 0:00:22]} 5. O-O {[%emt 0:00:07]} O-O {[%emt 0:00:12]} 6. d3 {[%emt 0:00:02]} Bxc3 {[%emt 0:00:08]} 7. bxc3 {[%emt 0:00:04]} d6 {[%emt 0:00:07]} 8. Bg5 {[%emt 0:00:09]} Qe7 {[%emt 0:01:51]} 9. Re1 {[%emt 0:00:07]} Nd8 {[%emt 0:01:48]} 10. d4 {[%emt 0:02:16]} Ne6 {[%emt 0:00:51]} 11. Bd2 {[%emt 0:05:39]} c6 {[%emt 0:04:49]} 12. Bf1 {[%emt 0:04:49]} Nc7 {[%emt 0:00:31]} 13. h3 {[%emt 0:05:51]} h6 {[%emt 0:00:15]} 14. Bd3 {[%emt 0:06:38]} Re8 {[%emt 0:07:22]} 15. a4 {[%emt 0:07:04]} Nd7 {[%emt 0:01:32]} 16. Nh2 {[%emt 0:10:03]} Ne6 {[%emt 0:01:36]} 17. Be3 {[%emt 0:06:17]} Nf6 {[%emt 0:04:49]} 18. Nf1 {[%emt 0:02:06]} c5 {[%emt 0:03:11]} 19. Ng3 {[%emt 0:01:43]} cxd4 {[%emt 0:00:46]} 20. Nf5 {[%emt 0:02:27]} Qc7 {[%emt 0:00:06]} 21. cxd4 {[%emt 0:00:08]} Nxd4 {[%emt 0:00:06]} 22. Nxd4 {[%emt 0:00:15]} exd4 {[%emt 0:00:04]} 23. Bxd4 {[%emt 0:00:03]} Nd7 {[%emt 0:00:04]} 24. Re3 {[%emt 0:05:21]} Ne5 {[%emt 0:18:26]} 25. Rg3 {[%emt 0:01:21]} f6 {[%emt 0:00:07]} 26. f4 {[%emt 0:12:06]} Nxd3 {[%emt 0:00:09]} 27. cxd3 {[%emt 0:00:03]} Qf7 {[%emt 0:02:53]} 28. f5 {[%emt 0:00:39]} d5 {[%emt 0:02:23]} 29. Rg6 {[%emt 0:03:41]} Kf8 {[%emt 0:02:00]} 30. Qh5 {[%emt 0:02:20]} Qe7 {[%emt 0:02:11]} 31. Bxf6 {[%emt 0:02:22]} Qc5+ {[%emt 0:01:23]} 32. d4 {[%emt 0:00:18]} 1-0

[Event "Dutch Open-ch 2019"]
[Site "Dieren"]
[Date "2019.07.27"]
[Round "5.11"]
[White "Elgersma, Onno"]
[Black "Bosboom, Manuel"]
[Result "0-1"]
[ECO "C41"]
[WhiteElo "2232"]
[BlackElo "2418"]
[Annotator "NA"]
[PlyCount "66"]
[EventDate "2019.07.23"]
[EventType "swiss"]
[EventCountry "NED"]
[SourceTitle "playchess.com"]
[Source "ChessBase"]
[SourceQuality "1"]
[TimeControl "40/5400+30:1800+30"]

1. e4 {[%emt 0:00:00]} d6 {[%emt 0:00:00]} 2. d4 {[%emt 0:00:38]} Nf6 {[%emt 0:00:00]} 3. Nc3 {[%emt 0:00:24]} e5 {[%emt 0:00:15]} 4. Nf3 {[%emt 0:02:50]} Nbd7 {[%emt 0:00:10]} 5. Bc4 {[%emt 0:00:57]} Be7 {[%emt 0:00:10]} 6. O-O {[%emt 0:00:33]} O-O {[%emt 0:01:47]} 7. Re1 {[%emt 0:01:39]} a6 {[%emt 0:05:04]} 8. a4 {[%emt 0:02:33]} b6 {[%emt 0:01:01]} 9. h3 {[%emt 0:13:33]} Bb7 {[%emt 0:03:24]} 10. Qd3 {[%emt 0:08:00]} c6 {[%emt 0:11:29]} 11. Ba2 {[%emt 0:14:18]} b5 {[%emt 0:22:46]} 12. b4 {[%emt 0:14:41]} a5 {[%emt 0:21:07]} 13. axb5 {[%emt 0:09:07]} axb4 {[%emt 0:00:37]} 14. bxc6 {[%emt 0:02:05]} Bxc6 {[%emt 0:03:52]} 15. Qc4 {[%emt 0:13:03]} Rc8 {[%emt 0:11:35]} 16. Qxb4 {[%emt 0:00:15]} Nxe4 {[%emt 0:01:59]} 17. Nxe4 {[%emt 0:06:48]} Bxe4 {[%emt 0:00:17]} 18. dxe5 {[%emt 0:00:49]} Bxf3 {[%emt 0:01:34]} 19. gxf3 {[%emt 0:07:17]} dxe5 {[%emt 0:01:42]} 20. Qe4 {[%emt 0:00:00]} Nf6 {[%emt 0:04:19]} 21. Qf5 {[%emt 0:00:00]} Bb4 {[%emt 0:02:27]} 22. Rf1 {[%emt 0:00:00]} g6 {[%emt 0:01:45]} 23. Qg5 {[%emt 0:00:00]} Rxc2 {[%emt 0:00:36]} 24. Be3 {[%emt 0:00:00]} Bc5 {[%emt 0:01:04]} 25. Bxc5 {[%emt 0:00:12]} Rxc5 {[%emt 0:00:01]} 26. Rfc1 {[%emt 0:01:37]} Rxc1+ {[%emt 0:00:53]} 27. Rxc1 {[%emt 0:00:05]} Qd6 {[%emt 0:00:21]} 28. Re1 {[%emt 0:00:42]} Re8 {[%emt 0:00:04]} 29. Bb3 {[%emt 0:01:14]} Kg7 {[%emt 0:00:10]} 30. Rd1 {[%emt 0:00:47]} Qb4 {[%emt 0:00:27]} 31. Qe3 {[%emt 0:00:41]} Re7 {[%emt 0:00:01]} 32. Kg2 {[%emt 0:00:28]} Nh5 {[%emt 0:00:07]} 33. Rd5 {[%emt 0:00:38]} Nf4+ {[%emt 0:00:11]} 0-1